fUST/lending_fUST_20241112
["ID","MTS","AMOUNT","RATE_DAILY","PERIOD"]
[342053324,1731395463752,-1035.61,0.00024931,2]
[342053325,1731395463762,-974.3,0.00024931,2]
[342053326,1731395463771,-3387.7,0.00024931,2]
[342053327,1731395463781,-500.0,0.00024931,2]
[342053328,1731395463791,-1217.45,0.00024931,2]
[342053329,1731395463800,-150.0,0.00024932,2]
[342053330,1731395463809,-150.0,0.00024932,2]
[342053331,1731395463819,-150.0,0.00024932,2]
[342053332,1731395463828,-150.0,0.00024932,2]
[342053333,1731395463838,-520.0,0.00024961,2]
[342053334,1731395463848,-218120.68153013,0.00025,2]
[342053335,1731395463857,-203.41345406,0.00025,2]
[342053336,1731395463868,-165.48089768,0.00025,2]
[342053337,1731395463877,-1366.30128896,0.00025,2]
[342053338,1731395463886,-509.87913667,0.00025,2]
[342053339,1731395463896,-10000.0,0.00025,30]
[342053340,1731395463905,-26394.83,0.00025,14]
[342053341,1731395463915,-2000.0,0.00025,2]
[342053342,1731395463926,-1040.24817633,0.00025,2]
[342053343,1731395463935,-1000.0,0.00025,5]
[342053344,1731395463946,-269.599999,0.00025,2]
[342053345,1731395463955,-500.1046496,0.00025,2]
[342053346,1731395463964,-39960.89205169,0.00025,2]
[342053347,1731395463974,-182660.71917899,0.00025,2]
[342053348,1731395463983,-500.0,0.00025,5]
[342053349,1731395463993,-20571.19400631,0.00025,2]
[342053350,1731395464003,-500.0,0.00025,17]
[342053351,1731395464012,-600.0,0.00025,2]
[342053352,1731395464022,-2000.94125791,0.0002502,2]
[342053353,1731395464031,-2000.0,0.0002502,2]
[342053354,1731395464041,-2000.0,0.0002502,2]
[342053355,1731395464050,-2000.0,0.0002502,2]
[342053356,1731395464060,-1200.0,0.00025066,7]
[342053357,1731395464069,-190.2,0.00025072,4]
[342053358,1731395464079,-17995.80339314,0.0002509,2]
[342053359,1731395464088,-857.24667617,0.00025182,2]
[342053360,1731395464098,-300.0,0.000252,2]
[342053361,1731395464107,-544.45,0.00025205,2]
[342053362,1731395464117,-515.04,0.00025205,2]
[342053363,1731395464126,-554.84,0.00025205,2]
[342053364,1731395464135,-500.0,0.00025205,2]
[342053365,1731395464145,-500.0,0.00025205,2]
[342053366,1731395464155,-500.0,0.00025205,2]
[342053367,1731395464164,-500.0,0.00025205,2]
[342053368,1731395464174,-1157.98,0.00025205,2]
[342053369,1731395464183,-861.1,0.00025205,2]
[342053370,1731395464194,-528.28,0.00025205,2]
[342053371,1731395464204,-499.91900254,0.00025205,2]
[342053372,1731395464213,-500.0,0.00025205,2]
[342053373,1731395464223,-500.0,0.00025205,2]
[342053374,1731395464232,-500.0,0.00025205,2]
[342053375,1731395464241,-500.0,0.00025205,2]
[342053376,1731395464250,-500.0,0.00025205,2]
[342053377,1731395464259,-500.0,0.00025205,2]
[342053378,1731395464269,-529.4,0.00025205,2]
[342053379,1731395464278,-687.54,0.00025205,2]
[342053380,1731395464287,-687.26,0.00025205,2]
[342053381,1731395464296,-2310.28,0.00025205,2]
[342053382,1731395464305,-500.0,0.00025205,2]
[342053383,1731395464314,-500.0,0.00025205,2]
[342053384,1731395464324,-500.0,0.00025205,2]
[342053385,1731395464333,-2204.59,0.00025205,2]
[342053386,1731395464342,-500.0,0.00025205,2]
[342053387,1731395464351,-657.25,0.00025205,2]
[342053388,1731395464360,-6271.46,0.00025205,2]
[342053389,1731395464369,-573.94,0.00025205,2]
[342053390,1731395464379,-883.62,0.00025205,2]
[342053391,1731395464389,-925.17,0.00025205,2]
[342053392,1731395464398,-500.0,0.00025205,2]
[342053393,1731395464408,-500.0,0.00025205,2]
[342053394,1731395464417,-1011.75,0.00025205,2]
[342053395,1731395464426,-19034.84,0.00025205,2]
[342053396,1731395464435,-1831.69,0.00025205,2]
[342053397,1731395464447,-500.0,0.00025205,2]
[342053398,1731395464457,-564.26,0.00025205,2]
[342053399,1731395464470,-562.16350692,0.00025205,2]
[342053400,1731395464479,-1321.42,0.00025205,2]
[342053401,1731395464489,-516.24,0.00025205,2]
[342053402,1731395464498,-1588.61,0.00025205,2]
[342053403,1731395464508,-500.0,0.00025205,2]
[342053404,1731395464517,-6707.74,0.00025205,2]
[342053405,1731395464527,-4781.29,0.00025205,2]
[342053406,1731395464538,-1089.53,0.00025205,2]
[342053407,1731395464547,-737.22,0.00025205,2]
[342053408,1731395464556,-8365.05,0.00025205,2]
[342053409,1731395464565,-1231.58,0.00025205,2]
[342053410,1731395464574,-578.71,0.00025205,2]
[342053411,1731395464584,-500.0,0.00025205,2]
[342053412,1731395464594,-690.09,0.00025205,2]
[342053413,1731395464603,-3140.86,0.00025205,2]
[342053414,1731395464613,-500.0,0.00025205,2]
[342053415,1731395464622,-500.0,0.00025205,2]
[342053416,1731395464632,-1329.26,0.00025205,2]
[342053417,1731395464642,-1361.49,0.00025205,2]
[342053418,1731395464651,-500.0,0.00025205,2]
[342053419,1731395464660,-557.15881888,0.00025205,2]
[342053420,1731395464669,-754.43,0.00025205,2]
[342053421,1731395464679,-1514.78,0.00025205,2]
[342053422,1731395464689,-500.0,0.00025205,2]
[342053423,1731395464698,-633.9,0.00025205,2]
[342053424,1731395464708,-815.11,0.00025205,2]
[342053425,1731395464717,-611.92,0.00025205,2]
[342053426,1731395464727,-12440.19,0.00025205,2]
[342053427,1731395464737,-515.26,0.00025205,2]
[342053428,1731395464746,-782.05,0.00025205,2]
[342053429,1731395464756,-958.04,0.00025205,2]
[342053430,1731395464766,-500.0,0.00025205,2]
[342053431,1731395464775,-517.22,0.00025205,2]
[342053432,1731395464784,-500.0,0.00025205,2]
[342053433,1731395464794,-1035.61,0.00025205,2]
[342053434,1731395464804,-974.3,0.00025205,2]
[342053435,1731395464813,-3387.7,0.00025205,2]
[342053436,1731395464823,-490.81968296,0.00025205,2]
[342053437,1731395464832,-1217.45,0.00025205,2]
[342053438,1731395464842,-600.0,0.0002525,2]
[342053439,1731395464852,-5338.0,0.00025286,7]
[342053440,1731395464861,-306.795342,0.000254,12]
[342053441,1731395464870,-544.45,0.00025479,2]
[342053442,1731395464879,-515.04,0.00025479,2]
[342053443,1731395464889,-554.84,0.00025479,2]
[342053444,1731395464898,-500.0,0.00025479,2]
[342053445,1731395464908,-500.0,0.00025479,2]
[342053446,1731395464918,-500.0,0.00025479,2]
[342053447,1731395464928,-500.0,0.00025479,2]
[342053448,1731395464937,-1157.98,0.00025479,2]
[342053449,1731395464948,-861.1,0.00025479,2]
[342053450,1731395464957,-528.28,0.00025479,2]
[342053451,1731395464967,-500.0,0.00025479,2]
[342053452,1731395464976,-606.13121369,0.00025479,2]
[342053453,1731395464986,-500.0,0.00025479,2]
[342053454,1731395464996,-409.88108576,0.00025479,2]
[342053455,1731395465005,-500.0,0.00025479,2]
[342053456,1731395465014,-500.0,0.00025479,2]
[342053457,1731395465023,-529.4,0.00025479,2]
[342053458,1731395465032,-687.54,0.00025479,2]
[342053459,1731395465041,-687.26,0.00025479,2]
[342053460,1731395465050,-2310.28,0.00025479,2]
[342053461,1731395465059,-500.0,0.00025479,2]
[342053462,1731395465069,-500.0,0.00025479,2]
[342053463,1731395465079,-500.0,0.00025479,2]
[342053464,1731395465088,-2204.59,0.00025479,2]
[342053465,1731395465098,-500.0,0.00025479,2]
[342053466,1731395465107,-657.25,0.00025479,2]
[342053467,1731395465116,-6271.46,0.00025479,2]
[342053468,1731395465125,-573.94,0.00025479,2]
[342053469,1731395465135,-883.62,0.00025479,2]
[342053470,1731395465144,-925.17,0.00025479,2]
[342053471,1731395465154,-500.0,0.00025479,2]
[342053472,1731395465163,-500.0,0.00025479,2]
[342053473,1731395465173,-1011.75,0.00025479,2]
[342053474,1731395465183,-19034.84,0.00025479,2]
[342053475,1731395465194,-1831.69,0.00025479,2]
[342053476,1731395465204,-500.0,0.00025479,2]
[342053477,1731395465214,-564.26,0.00025479,2]
[342053478,1731395465223,-1321.42,0.00025479,2]
[342053479,1731395465232,-516.24,0.00025479,2]
[342053480,1731395465241,-1588.61,0.00025479,2]
[342053481,1731395465251,-500.0,0.00025479,2]
[342053482,1731395465260,-6707.74,0.00025479,2]
[342053483,1731395465270,-4781.29,0.00025479,2]
[342053484,1731395465279,-1089.53,0.00025479,2]
[342053485,1731395465289,-737.22,0.00025479,2]
[342053486,1731395465299,-8365.05,0.00025479,2]
[342053487,1731395465308,-1231.58,0.00025479,2]
[342053488,1731395465318,-578.71,0.00025479,2]
[342053489,1731395465327,-500.0,0.00025479,2]
[342053490,1731395465337,-690.09,0.00025479,2]
[342053491,1731395465347,-3140.86,0.00025479,2]
[342053492,1731395465356,-500.0,0.00025479,2]
[342053493,1731395465366,-500.0,0.00025479,2]
[342053494,1731395465376,-1329.26,0.00025479,2]
[342053495,1731395465384,-1361.49,0.00025479,2]
[342053496,1731395465393,-500.0,0.00025479,2]
[342053497,1731395465403,-754.43,0.00025479,2]
[342053498,1731395465412,-1514.78,0.00025479,2]
[342053499,1731395465422,-500.0,0.00025479,2]
[342053500,1731395465431,-633.9,0.00025479,2]
[342053501,1731395465442,-815.11,0.00025479,2]
[342053502,1731395465451,-611.92,0.00025479,2]
[342053503,1731395465463,-12440.19,0.00025479,2]
[342053504,1731395465473,-515.26,0.00025479,2]
[342053505,1731395465483,-782.05,0.00025479,2]
[342053506,1731395465492,-958.04,0.00025479,2]
[342053507,1731395465503,-500.0,0.00025479,2]
[342053508,1731395465512,-517.22,0.00025479,2]
[342053509,1731395465521,-500.0,0.00025479,2]
[342053510,1731395465531,-1035.61,0.00025479,2]
[342053511,1731395465542,-974.3,0.00025479,2]
[342053512,1731395465552,-3387.7,0.00025479,2]
[342053513,1731395465561,-1217.45,0.00025479,2]
[342053514,1731395465570,-600.0,0.000255,2]
[342053515,1731395465579,-2000.0,0.0002562,2]
[342053516,1731395465588,-1012.56358809,0.0002562,2]
[342053517,1731395465598,-1370.37422628,0.0002562,2]
[342053518,1731395465607,-2000.0,0.0002562,2]
[342053519,1731395465616,-2000.0,0.0002562,2]
[342053520,1731395465626,-2000.0,0.0002562,2]
[342053521,1731395465635,-2000.0,0.0002562,2]
[342053522,1731395465644,-1978.88,0.000257,14]
[342053523,1731395465653,-190.2,0.0002573,4]
[342053524,1731395465662,-600.0,0.0002575,2]
[342053525,1731395465671,-544.45,0.00025753,2]
[342053526,1731395465795,-515.04,0.00025753,2]
[342053527,1731395465804,-554.84,0.00025753,2]
[342053528,1731395465816,-322.35454971,0.00025753,2]
[342053529,1731395465826,-500.0,0.00025753,2]
[342053530,1731395465836,-508.88496939,0.00025753,2]
[342053531,1731395465845,-500.0,0.00025753,2]
[342053532,1731395465854,-1157.98,0.00025753,2]
[342053533,1731395465863,-861.1,0.00025753,2]
[342053534,1731395465873,-528.28,0.00025753,2]
[342053535,1731395465882,-301.14726373,0.00025753,2]
[342053536,1731395465891,-500.0,0.00025753,2]
[342053537,1731395465900,-500.0,0.00025753,2]
[342053538,1731395465910,-500.0,0.00025753,2]
[342053539,1731395465920,-529.4,0.00025753,2]
[342053540,1731395465929,-687.54,0.00025753,2]
[342053541,1731395465938,-687.26,0.00025753,2]
[342053542,1731395465948,-2310.28,0.00025753,2]
[342053543,1731395465957,-500.0,0.00025753,2]
[342053544,1731395465967,-500.0,0.00025753,2]
[342053545,1731395465976,-500.0,0.00025753,2]
[342053546,1731395465986,-2204.59,0.00025753,2]
[342053547,1731395465995,-500.0,0.00025753,2]
[342053548,1731395466004,-657.25,0.00025753,2]
[342053549,1731395466013,-6271.46,0.00025753,2]
[342053550,1731395466022,-573.94,0.00025753,2]
[342053551,1731395466031,-883.62,0.00025753,2]
[342053552,1731395466040,-925.17,0.00025753,2]
[342053553,1731395466050,-500.0,0.00025753,2]
[342053554,1731395466058,-500.0,0.00025753,2]
[342053555,1731395466067,-1011.75,0.00025753,2]
[342053556,1731395466076,-19034.84,0.00025753,2]
[342053557,1731395466086,-1831.69,0.00025753,2]
[342053558,1731395466095,-500.0,0.00025753,2]
[342053559,1731395466105,-564.26,0.00025753,2]
[342053560,1731395466114,-1321.42,0.00025753,2]
[342053561,1731395466123,-516.24,0.00025753,2]
[342053562,1731395466132,-1588.61,0.00025753,2]
[342053563,1731395466142,-500.0,0.00025753,2]
[342053564,1731395466151,-6707.74,0.00025753,2]
[342053565,1731395466160,-4781.29,0.00025753,2]
[342053566,1731395466170,-1089.53,0.00025753,2]
[342053567,1731395466180,-737.22,0.00025753,2]
[342053568,1731395466190,-8365.05,0.00025753,2]
[342053569,1731395466200,-1231.58,0.00025753,2]
[342053570,1731395466210,-578.71,0.00025753,2]
[342053571,1731395466219,-500.0,0.00025753,2]
[342053572,1731395466229,-690.09,0.00025753,2]
[342053573,1731395466238,-3140.86,0.00025753,2]
[342053574,1731395466248,-500.0,0.00025753,2]
[342053575,1731395466258,-627.13984259,0.00025753,2]
[342053576,1731395466267,-1329.26,0.00025753,2]
[342053577,1731395466277,-1361.49,0.00025753,2]
[342053578,1731395466286,-343.44,0.00025753,2]
[342053579,1731395466296,-754.43,0.00025753,2]
[342053580,1731395466305,-1514.78,0.00025753,2]
[342053581,1731395466314,-530.40474347,0.00025753,2]
[342053582,1731395466324,-633.9,0.00025753,2]
[342053583,1731395466333,-815.11,0.00025753,2]
[342053584,1731395466343,-611.92,0.00025753,2]
[342053585,1731395466353,-12440.19,0.00025753,2]
[342053586,1731395466362,-515.26,0.00025753,2]
[342053587,1731395466371,-782.05,0.00025753,2]
[342053588,1731395466380,-958.04,0.00025753,2]
[342053589,1731395466390,-500.0,0.00025753,2]
[342053590,1731395466400,-517.22,0.00025753,2]
[342053591,1731395466409,-287.0544774,0.00025753,2]
[342053592,1731395466419,-1035.61,0.00025753,2]
[342053593,1731395466427,-974.3,0.00025753,2]
[342053594,1731395466437,-3387.7,0.00025753,2]
[342053595,1731395466448,-1217.45,0.00025753,2]
[342053596,1731395466461,-410.0,0.00025775,2]
[342053597,1731395466471,-167.0,0.00025775,2]
[342053598,1731395466480,-1500.0,0.00025847,2]
[342053599,1731395466489,-2720.71787933,0.00025852,2]
[342053600,1731395466498,-1200.0,0.00025888,7]
[342053601,1731395466508,-500.0,0.00026,20]
[342053602,1731395466517,-600.0,0.00026,2]
[342053603,1731395466526,-544.45,0.00026027,2]
[342053604,1731395466535,-515.04,0.00026027,2]
[342053605,1731395466547,-554.84,0.00026027,2]
[342053606,1731395466558,-500.0,0.00026027,2]
[342053607,1731395466567,-516.4598272,0.00026027,2]
[342053608,1731395466578,-1157.98,0.00026027,2]
[342053609,1731395466587,-861.1,0.00026027,2]
[342053610,1731395466596,-528.28,0.00026027,2]
[342053611,1731395466605,-500.0,0.00026027,2]
[342053612,1731395466614,-500.0,0.00026027,2]
[342053613,1731395466624,-500.0,0.00026027,2]
[342053614,1731395466633,-529.4,0.00026027,2]
[342053615,1731395466643,-687.54,0.00026027,2]
[342053616,1731395466653,-687.26,0.00026027,2]
[342053617,1731395466662,-2310.28,0.00026027,2]
[342053618,1731395466671,-500.0,0.00026027,2]
[342053619,1731395466680,-500.0,0.00026027,2]
[342053620,1731395466690,-500.0,0.00026027,2]
[342053621,1731395466699,-2204.59,0.00026027,2]
[342053622,1731395466708,-500.0,0.00026027,2]
[342053623,1731395466718,-657.25,0.00026027,2]
[342053624,1731395466729,-6271.46,0.00026027,2]
[342053625,1731395466739,-573.94,0.00026027,2]
[342053626,1731395466748,-883.62,0.00026027,2]
[342053627,1731395466758,-925.17,0.00026027,2]
[342053628,1731395466768,-500.0,0.00026027,2]
[342053629,1731395466777,-500.0,0.00026027,2]
[342053630,1731395466787,-1011.75,0.00026027,2]
[342053631,1731395466796,-19034.84,0.00026027,2]
[342053632,1731395466805,-1831.69,0.00026027,2]
[342053633,1731395466815,-500.0,0.00026027,2]
[342053634,1731395466824,-564.26,0.00026027,2]
[342053635,1731395466834,-1321.42,0.00026027,2]
[342053636,1731395466843,-516.24,0.00026027,2]
[342053637,1731395466852,-1588.61,0.00026027,2]
[342053638,1731395466861,-500.0,0.00026027,2]
[342053639,1731395466871,-6707.74,0.00026027,2]
[342053640,1731395466880,-4781.29,0.00026027,2]
[342053641,1731395466889,-1089.53,0.00026027,2]
[342053642,1731395466898,-737.22,0.00026027,2]
[342053643,1731395466908,-8365.05,0.00026027,2]
[342053644,1731395466918,-1231.58,0.00026027,2]
[342053645,1731395466927,-578.71,0.00026027,2]
[342053646,1731395466937,-500.0,0.00026027,2]
[342053647,1731395466949,-690.09,0.00026027,2]
[342053648,1731395466959,-3140.86,0.00026027,2]
[342053649,1731395466968,-500.0,0.00026027,2]
[342053650,1731395466977,-1329.26,0.00026027,2]
[342053651,1731395466986,-1361.49,0.00026027,2]
[342053652,1731395466996,-754.43,0.00026027,2]
[342053653,1731395467005,-1514.78,0.00026027,2]
[342053654,1731395467015,-633.9,0.00026027,2]
[342053655,1731395467024,-815.11,0.00026027,2]
[342053656,1731395467034,-611.92,0.00026027,2]
[342053657,1731395467045,-12440.19,0.00026027,2]
[342053658,1731395467054,-515.26,0.00026027,2]
[342053659,1731395467063,-782.05,0.00026027,2]
[342053660,1731395467072,-958.04,0.00026027,2]
[342053661,1731395467083,-500.0,0.00026027,2]
[342053662,1731395467092,-517.22,0.00026027,2]
[342053663,1731395467102,-1035.61,0.00026027,2]
[342053664,1731395467112,-974.3,0.00026027,2]
[342053665,1731395467121,-3387.7,0.00026027,2]
[342053666,1731395467131,-1217.45,0.00026027,2]
[342053667,1731395467141,-9161.96,0.000261,14]
[342053668,1731395467150,-3767.3,0.000261,14]
[342053669,1731395467159,-300.0,0.000262,2]
[342053670,1731395467169,-600.0,0.0002625,2]
[342053671,1731395467178,-857.24667617,0.00026291,2]
[342053672,1731395467191,-501.0,0.000263,2]
[342053673,1731395467200,-544.45,0.00026301,2]
[342053674,1731395467210,-515.04,0.00026301,2]
[342053675,1731395467219,-554.84,0.00026301,2]
[342053676,1731395467229,-500.0,0.00026301,2]
[342053677,1731395467238,-1157.98,0.00026301,2]
[342053678,1731395467247,-861.1,0.00026301,2]
[342053679,1731395467256,-528.28,0.00026301,2]
[342053680,1731395467266,-500.0,0.00026301,2]
[342053681,1731395467276,-500.0,0.00026301,2]
[342053682,1731395467285,-500.0,0.00026301,2]
[342053683,1731395467295,-529.4,0.00026301,2]
[342053684,1731395467304,-687.54,0.00026301,2]
[342053685,1731395467313,-687.26,0.00026301,2]
[342053686,1731395467323,-2310.28,0.00026301,2]
[342053687,1731395467332,-500.0,0.00026301,2]
[342053688,1731395467341,-500.0,0.00026301,2]
[342053689,1731395467351,-190.0355293,0.00026301,2]
[342053690,1731395467360,-2204.59,0.00026301,2]
[342053691,1731395467369,-500.0,0.00026301,2]
[342053692,1731395467379,-657.25,0.00026301,2]
[342053693,1731395467388,-6271.46,0.00026301,2]
[342053694,1731395467397,-573.94,0.00026301,2]
[342053695,1731395467406,-883.62,0.00026301,2]
[342053696,1731395467415,-925.17,0.00026301,2]
[342053697,1731395467425,-618.54676798,0.00026301,2]
[342053698,1731395467434,-500.0,0.00026301,2]
[342053699,1731395467447,-1011.75,0.00026301,2]
[342053700,1731395467456,-19034.84,0.00026301,2]
[342053701,1731395467470,-1831.69,0.00026301,2]
[342053702,1731395467480,-500.0,0.00026301,2]
[342053703,1731395467490,-564.26,0.00026301,2]
[342053704,1731395467499,-1321.42,0.00026301,2]
[342053705,1731395467509,-516.24,0.00026301,2]
[342053706,1731395467519,-1588.61,0.00026301,2]
[342053707,1731395467528,-500.0,0.00026301,2]
[342053708,1731395467540,-6707.74,0.00026301,2]
[342053709,1731395467549,-4781.29,0.00026301,2]
[342053710,1731395467559,-1089.53,0.00026301,2]
[342053711,1731395467568,-737.22,0.00026301,2]
[342053712,1731395467577,-8365.05,0.00026301,2]
[342053713,1731395467587,-1231.58,0.00026301,2]
[342053714,1731395467596,-578.71,0.00026301,2]
[342053715,1731395467606,-194.8697566,0.00026301,2]
[342053716,1731395467616,-690.09,0.00026301,2]
[342053717,1731395467625,-3140.86,0.00026301,2]
[342053718,1731395467634,-500.0,0.00026301,2]
[342053719,1731395467643,-1329.26,0.00026301,2]
[342053720,1731395467652,-1361.49,0.00026301,2]
[342053721,1731395467661,-754.43,0.00026301,2]
[342053722,1731395467670,-1514.78,0.00026301,2]
[342053723,1731395467680,-633.9,0.00026301,2]
[342053724,1731395467689,-815.11,0.00026301,2]
[342053725,1731395467704,-611.92,0.00026301,2]
[342053726,1731395467714,-12440.19,0.00026301,2]
[342053727,1731395467723,-515.26,0.00026301,2]
[342053728,1731395467732,-782.05,0.00026301,2]
[342053729,1731395467741,-958.04,0.00026301,2]
[342053730,1731395467751,-500.0,0.00026301,2]
[342053731,1731395467760,-517.22,0.00026301,2]
[342053732,1731395467770,-1035.61,0.00026301,2]
[342053733,1731395467779,-974.3,0.00026301,2]
[342053734,1731395467789,-3387.7,0.00026301,2]
[342053735,1731395467798,-1217.45,0.00026301,2]
[342053736,1731395467808,-2500.0,0.00026356,2]
[342053737,1731395467818,-660.0,0.00026384,2]
[342053738,1731395467828,-190.2,0.00026389,5]
[342053739,1731395467838,-500.0,0.00026473,2]
[342053740,1731395467847,-600.0,0.000265,2]
[342053741,1731395467857,-2500.0,0.00026556,2]
[342053742,1731395467866,-1822.1938759,0.00026556,2]
[342053743,1731395467875,-2500.0,0.00026556,2]
[342053744,1731395467884,-544.45,0.00026575,2]
[342053745,1731395467893,-515.04,0.00026575,2]
[342053746,1731395467902,-554.84,0.00026575,2]
[342053747,1731395467912,-500.0,0.00026575,2]
[342053748,1731395467921,-1157.98,0.00026575,2]
[342053749,1731395467930,-861.1,0.00026575,2]
[342053750,1731395467943,-528.28,0.00026575,2]
[342053751,1731395467952,-500.0,0.00026575,2]
[342053752,1731395467962,-500.0,0.00026575,2]
[342053753,1731395467971,-500.0,0.00026575,2]
[342053754,1731395467981,-529.4,0.00026575,2]
[342053755,1731395467990,-687.54,0.00026575,2]
[342053756,1731395468000,-687.26,0.00026575,2]
[342053757,1731395468009,-2310.28,0.00026575,2]
[342053758,1731395468018,-500.0,0.00026575,2]
[342053759,1731395468027,-500.0,0.00026575,2]
[342053760,1731395468036,-2204.59,0.00026575,2]
[342053761,1731395468046,-500.0,0.00026575,2]
[342053762,1731395468055,-657.25,0.00026575,2]
[342053763,1731395468064,-6271.46,0.00026575,2]
[342053764,1731395468074,-573.94,0.00026575,2]
[342053765,1731395468084,-883.62,0.00026575,2]
[342053766,1731395468093,-925.17,0.00026575,2]
[342053767,1731395468102,-500.0,0.00026575,2]
[342053768,1731395468111,-1011.75,0.00026575,2]
[342053769,1731395468120,-19034.84,0.00026575,2]
[342053770,1731395468133,-1831.69,0.00026575,2]
[342053771,1731395468143,-515.617096,0.00026575,2]
[342053772,1731395468153,-564.26,0.00026575,2]
[342053773,1731395468163,-1321.42,0.00026575,2]
[342053774,1731395468173,-516.24,0.00026575,2]
[342053775,1731395468182,-1588.61,0.00026575,2]
[342053776,1731395468193,-177.80010574,0.00026575,2]
[342053777,1731395468202,-6707.74,0.00026575,2]
[342053778,1731395468212,-4781.29,0.00026575,2]
[342053779,1731395468221,-1089.53,0.00026575,2]
[342053780,1731395468231,-737.22,0.00026575,2]
[342053781,1731395468240,-8365.05,0.00026575,2]
[342053782,1731395468250,-1231.58,0.00026575,2]
[342053783,1731395468259,-578.71,0.00026575,2]
[342053784,1731395468378,-690.09,0.00026575,2]
[342053785,1731395468388,-3140.86,0.00026575,2]
[342053786,1731395468398,-500.0,0.00026575,2]
[342053787,1731395468407,-1329.26,0.00026575,2]
[342053788,1731395468416,-1361.49,0.00026575,2]
[342053789,1731395468425,-754.43,0.00026575,2]
[342053790,1731395468435,-1514.78,0.00026575,2]
[342053791,1731395468446,-633.9,0.00026575,2]
[342053792,1731395468455,-815.11,0.00026575,2]
[342053793,1731395468469,-611.92,0.00026575,2]
[342053794,1731395468478,-12440.19,0.00026575,2]
[342053795,1731395468488,-515.26,0.00026575,2]
[342053796,1731395468497,-782.05,0.00026575,2]
[342053797,1731395468507,-958.04,0.00026575,2]
[342053798,1731395468516,-500.0,0.00026575,2]
[342053799,1731395468526,-517.22,0.00026575,2]
[342053800,1731395468535,-1035.61,0.00026575,2]
[342053801,1731395468545,-974.3,0.00026575,2]
[342053802,1731395468555,-3387.7,0.00026575,2]
[342053803,1731395468564,-1217.45,0.00026575,2]
[342053804,1731395468574,-26394.83,0.000266,14]
[342053805,1731395468583,-1200.0,0.0002671,7]
[342053806,1731395468592,-702.18957054,0.0002675,2]
[342053807,1731395468601,-151.0,0.0002678,2]
[342053808,1731395468610,-823.0,0.00026842,2]
[342053809,1731395468619,-544.45,0.00026849,2]
[342053810,1731395468628,-515.04,0.00026849,2]
[342053811,1731395468637,-554.84,0.00026849,2]
[342053812,1731395468646,-500.0,0.00026849,2]
[342053813,1731395468656,-1157.98,0.00026849,2]
[342053814,1731395468665,-861.1,0.00026849,2]
[342053815,1731395468674,-528.28,0.00026849,2]
[342053816,1731395468684,-500.0,0.00026849,2]
[342053817,1731395468695,-500.0,0.00026849,2]
[342053818,1731395468704,-500.0,0.00026849,2]
[342053819,1731395468713,-529.4,0.00026849,2]
[342053820,1731395468723,-687.54,0.00026849,2]
[342053821,1731395468732,-687.26,0.00026849,2]
[342053822,1731395468741,-1273.84,0.00026849,2]
[342053823,1731395468750,-2310.28,0.00026849,2]